[Event "British KO-ch 2019"]
[Site "London"]
[Date "2019.12.01"]
[Round "1.2"]
[White "Clarke, Brandon G I"]
[Black "McShane, Luke J"]
[Result "1/2-1/2"]
[ECO "C65"]
[WhiteElo "2431"]
[BlackElo "2675"]
[Annotator "ChessBase"]
[PlyCount "71"]
[EventDate "2019.11.30"]
[EventType "k.o."]
[EventCountry "ENG"]
[SourceTitle "playchess.com"]
[Source "ChessBase"]
[SourceQuality "1"]
[TimeControl "5400+30"]

1. e4 {[%emt 0:18:45]} e5 {[%emt 0:00:00]} 2. Nf3 {[%emt 0:00:08]} Nc6 {[%emt 0:00:00]} 3. Bb5 {[%emt 0:00:05]} Nf6 {[%emt 0:00:00]} 4. d3 {[%emt 0:00:39]} Bc5 {[%emt 0:00:00]} 5. c3 {[%emt 0:00:07]} O-O {[%emt 0:00:22]} 6. Bg5 {[%emt 0:00:09]} Be7 {[%emt 0:05:06]} 7. O-O {[%emt 0:04:18]} d6 {[%emt 0:00:25]} 8. Nbd2 {[%emt 0:01:54]} Ng4 {[%emt 0:01:14]} 9. Bxe7 {[%emt 0:00:52]} Nxe7 {[%emt 0:01:19]} 10. d4 {[%emt 0:01:44]} Ng6 {[%emt 0:00:58]} 11. Re1 {[%emt 0:00:44]} Qe7 {[%emt 0:01:38]} 12. Nf1 {[%emt 0:02:55]} Nh4 {[%emt 0:01:40]} 13. Ng3 {[%emt 0:03:39]} Nxf3+ {[%emt 0:03:10]} 14. Qxf3 {[%emt 0:00:05]} Qf6 {[%emt 0:02:53]} 15. Qxf6 {[%emt 0:08:52]} Nxf6 {[%emt 0:00:07]} 16. Bc4 {[%emt 0:03:05]} Re8 {[%emt 0:04:13]} 17. f3 {[%emt 0:04:02]} Be6 {[%emt 0:02:14]} 18. Bxe6 {[%emt 0:00:26]} Rxe6 {[%emt 0:00:04]} 19. d5 {[%emt 0:00:30]} Ree8 {[%emt 0:00:05]} 20. c4 {[%emt 0:01:52]} a5 {[%emt 0:00:50]} 21. Ne2 {[%emt 0:00:39]} Kf8 {[%emt 0:01:48]} 22. Nc3 {[%emt 0:00:21]} Ke7 {[%emt 0:00:19]} 23. b3 {[%emt 0:02:00]} c6 {[%emt 0:11:51]} 24. Red1 {[%emt 0:01:06]} Nd7 {[%emt 0:03:24]} 25. Kf2 {[%emt 0:03:13]} g6 {[%emt 0:16:12]} 26. Ke3 {[%emt 0:00:30]} h5 {[%emt 0:02:45]} 27. Rd2 {[%emt 0:01:43]} c5 {[%emt 0:02:39]} 28. g3 {[%emt 0:02:27]} h4 {[%emt 0:01:31]} 29. g4 {[%emt 0:02:43]} g5 {[%emt 0:02:59]} 30. Kd3 {[%emt 0:01:29]} Ra6 {[%emt 0:03:21]} 31. Nb5 {[%emt 0:00:29]} Rc8 {[%emt 0:00:35]} 32. a3 {[%emt 0:03:42]} Kd8 {[%emt 0:15:32]} 33. Rda2 {[%emt 0:00:27]} Rca8 {[%emt 0:00:08]} 34. Kc3 {[%emt 0:01:02]} Kc8 {[%emt 0:01:01]} 35. Rb1 {[%emt 0:04:36]} Kd8 {[%emt 0:00:32]} 36. a4 {[%emt 0:03:25]} 1/2-1/2

[Event "British KO-ch 2019"]
[Site "London"]
[Date "2019.12.01"]
[Round "1.3"]
[White "McShane, Luke J"]
[Black "Clarke, Brandon G I"]
[Result "1-0"]
[ECO "B51"]
[WhiteElo "2675"]
[BlackElo "2431"]
[Annotator "ChessBase"]
[PlyCount "85"]
[EventDate "2019.11.30"]
[EventType "k.o."]
[EventCountry "ENG"]
[SourceTitle "playchess.com"]
[Source "ChessBase"]
[SourceQuality "1"]
[TimeControl "5400+30"]

1. e4 {[%emt 0:00:00]} c5 {[%emt 0:00:00]} 2. Nf3 {[%emt 0:00:00]} d6 {[%emt 0:00:26]} 3. Bb5+ {[%emt 0:00:00]} Nd7 {[%emt 0:00:33]} 4. d4 {[%emt 0:00:13]} cxd4 {[%emt 0:00:23]} 5. Qxd4 {[%emt 0:00:04]} a6 {[%emt 0:00:20]} 6. Bxd7+ {[%emt 0:00:04]} Bxd7 {[%emt 0:00:08]} 7. Nc3 {[%emt 0:00:05]} e5 {[%emt 0:00:19]} 8. Qd3 {[%emt 0:00:04]} Rc8 {[%emt 0:00:40]} 9. O-O {[%emt 0:00:07]} h6 {[%emt 0:00:38]} 10. Nd2 {[%emt 0:00:12]} Qc7 {[%emt 0:00:48]} 11. Rd1 {[%emt 0:00:07]} Bg4 {[%emt 0:01:04]} 12. Re1 {[%emt 0:00:05]} Nf6 {[%emt 0:00:14]} 13. Nf1 {[%emt 0:00:59]} Be7 {[%emt 0:00:31]} 14. Qg3 {[%emt 0:03:22]} g6 {[%emt 0:08:01]} 15. a4 {[%emt 0:04:01]} Be6 {[%emt 0:00:46]} 16. Ne3 {[%emt 0:01:35]} Qc6 {[%emt 0:24:26]} 17. Qf3 {[%emt 0:00:11]} Kf8 {[%emt 0:00:50]} 18. a5 {[%emt 0:08:30]} Kg7 {[%emt 0:00:28]} 19. Bd2 {[%emt 0:01:05]} Qd7 {[%emt 0:16:23]} 20. Red1 {[%emt 0:03:01]} h5 {[%emt 0:05:23]} 21. Qe2 {[%emt 0:03:01]} h4 {[%emt 0:05:32]} 22. f3 {[%emt 0:07:35]} g5 {[%emt 0:05:43]} 23. Na4 {[%emt 0:07:16]} Qc6 {[%emt 0:02:54]} 24. Nb6 {[%emt 0:02:10]} Rcg8 {[%emt 0:01:09]} 25. c4 {[%emt 0:01:03]} Nh5 {[%emt 0:01:44]} 26. Nbd5 {[%emt 0:04:13]} Nf4 {[%emt 0:00:29]} 27. Qf2 {[%emt 0:03:32]} Bf8 {[%emt 0:01:07]} 28. b3 {[%emt 0:04:10]} f6 {[%emt 0:04:54]} 29. Ng4 {[%emt 0:07:58]} Bxg4 {[%emt 0:03:07]} 30. fxg4 {[%emt 0:00:19]} h3 {[%emt 0:05:32]} 31. g3 {[%emt 0:01:48]} Nxd5 {[%emt 0:00:09]} 32. exd5 {[%emt 0:02:14]} Qd7 {[%emt 0:00:38]} 33. Qf3 {[%emt 0:01:12]} Be7 {[%emt 0:01:04]} 34. Be3 {[%emt 0:01:57]} Rc8 {[%emt 0:02:26]} 35. Ra2 {[%emt 0:01:40]} Bd8 {[%emt 0:01:12]} 36. Qe4 {[%emt 0:00:56]} Rf8 {[%emt 0:04:40]} 37. Rf1 {[%emt 0:02:00]} b5 {[%emt 0:01:57]} 38. axb6 {[%emt 0:18:57]} Qb7 {[%emt 0:00:02]} 39. c5 {[%emt 0:01:57]} dxc5 {[%emt 0:00:02]} 40. Bxg5 {[%emt 0:00:07]} Qxb6 {[%emt 0:02:45]} 41. Raf2 {[%emt 0:03:07]} Qd6 {[%emt 0:00:31]} 42. Rf5 {[%emt 0:02:22]} Be7 {[%emt 0:00:30]} 43. Bh6+ {[%emt 0:00:26]} 1-0

[Event "British KO-ch 2019"]
[Site "London"]
[Date "2019.12.01"]
[Round "1.4"]
[White "Pert, Nicholas"]
[Black "Jones, Gawain C B"]
[Result "0-1"]
[ECO "E61"]
[WhiteElo "2557"]
[BlackElo "2663"]
[Annotator "ChessBase"]
[PlyCount "118"]
[EventDate "2019.11.30"]
[EventType "k.o."]
[EventCountry "ENG"]
[SourceTitle "playchess.com"]
[Source "ChessBase"]
[SourceQuality "1"]
[TimeControl "5400+30"]

1. d4 {[%emt 0:00:10]} Nf6 {[%emt 0:05:49]} 2. Nf3 {[%emt 0:00:09]} g6 {[%emt 0:00:07]} 3. c4 {[%emt 0:00:25]} Bg7 {[%emt 0:00:07]} 4. Nc3 {[%emt 0:00:10]} O-O {[%emt 0:00:39]} 5. Bg5 {[%emt 0:00:34]} c5 {[%emt 0:01:32]} 6. d5 {[%emt 0:00:24]} h6 {[%emt 0:00:20]} 7. Bh4 {[%emt 0:00:57]} d6 {[%emt 0:00:23]} 8. e3 {[%emt 0:00:51]} Bf5 {[%emt 0:00:21]} 9. Nd2 {[%emt 0:03:34]} g5 {[%emt 0:08:46]} 10. Bg3 {[%emt 0:00:31]} Nbd7 {[%emt 0:00:22]} 11. Be2 {[%emt 0:06:01]} a6 {[%emt 0:05:13]} 12. O-O {[%emt 0:06:09]} Qb6 {[%emt 0:02:55]} 13. e4 {[%emt 0:16:32]} Bg6 {[%emt 0:00:06]} 14. Rb1 {[%emt 0:00:57]} e6 {[%emt 0:06:13]} 15. a3 {[%emt 0:19:19]} Rfe8 {[%emt 0:04:52]} 16. b4 {[%emt 0:01:30]} cxb4 {[%emt 0:07:31]} 17. axb4 {[%emt 0:02:15]} exd5 {[%emt 0:03:32]} 18. Nxd5 {[%emt 0:01:17]} Nxd5 {[%emt 0:01:51]} 19. cxd5 {[%emt 0:00:02]} Bxe4 {[%emt 0:01:00]} 20. Nc4 {[%emt 0:05:57]} Qd8 {[%emt 0:00:44]} 21. Bd3 {[%emt 0:00:33]} Bxd3 {[%emt 0:03:00]} 22. Qxd3 {[%emt 0:00:02]} Ne5 {[%emt 0:00:10]} 23. Bxe5 {[%emt 0:00:26]} Bxe5 {[%emt 0:00:20]} 24. Nxe5 {[%emt 0:01:48]} Rxe5 {[%emt 0:01:58]} 25. Qd4 {[%emt 0:06:22]} Qe7 {[%emt 0:01:52]} 26. Rbc1 {[%emt 0:00:39]} Re8 {[%emt 0:00:29]} 27. h3 {[%emt 0:00:20]} Qd7 {[%emt 0:03:56]} 28. f4 {[%emt 0:05:24]} Rf5 {[%emt 0:07:34]} 29. Rf2 {[%emt 0:06:19]} Qe7 {[%emt 0:03:12]} 30. fxg5 {[%emt 0:00:17]} Rxf2 {[%emt 0:01:13]} 31. Qxf2 {[%emt 0:00:02]} hxg5 {[%emt 0:00:50]} 32. Kh1 {[%emt 0:04:45]} Qe4 {[%emt 0:04:07]} 33. Qd2 {[%emt 0:00:17]} Re5 {[%emt 0:01:04]} 34. Rd1 {[%emt 0:00:26]} g4 {[%emt 0:03:02]} 35. Qc3 {[%emt 0:06:07]} Rh5 {[%emt 0:02:09]} 36. Kg1 {[%emt 0:03:39]} gxh3 {[%emt 0:00:43]} 37. Qg3+ {[%emt 0:00:05]} Qg6 {[%emt 0:03:21]} 38. Qxg6+ {[%emt 0:00:44]} fxg6 {[%emt 0:00:02]} 39. gxh3 {[%emt 0:00:39]} Rxh3 {[%emt 0:00:56]} 40. Rc1 {[%emt 0:00:19]} Rb3 {[%emt 0:00:40]} 41. Rc8+ {[%emt 0:00:45]} Kf7 {[%emt 0:00:07]} 42. Rc7+ {[%emt 0:00:03]} Kf6 {[%emt 0:00:05]} 43. Rxb7 {[%emt 0:00:02]} Ke5 {[%emt 0:00:11]} 44. Ra7 {[%emt 0:01:35]} Rxb4 {[%emt 0:02:25]} 45. Rxa6 {[%emt 0:00:02]} Rf4 {[%emt 0:00:56]} 46. Ra5 {[%emt 0:00:33]} Rd4 {[%emt 0:00:25]} 47. Kf2 {[%emt 0:00:20]} Rxd5 {[%emt 0:00:19]} 48. Ra8 {[%emt 0:00:02]} Kf4 {[%emt 0:00:35]} 49. Ra4+ {[%emt 0:00:04]} Kf5 {[%emt 0:00:11]} 50. Ke3 {[%emt 0:00:15]} g5 {[%emt 0:00:25]} 51. Ra8 {[%emt 0:02:28]} Re5+ {[%emt 0:01:51]} 52. Kf2 {[%emt 0:00:02]} Kf4 {[%emt 0:00:44]} 53. Ra4+ {[%emt 0:00:35]} Re4 {[%emt 0:00:16]} 54. Ra5 {[%emt 0:00:55]} Rd4 {[%emt 0:01:52]} 55. Ke2 {[%emt 0:00:17]} g4 {[%emt 0:00:16]} 56. Ra8 {[%emt 0:00:54]} Kg3 {[%emt 0:00:24]} 57. Rg8 {[%emt 0:01:09]} Rf4 {[%emt 0:01:52]} 58. Rg5 {[%emt 0:01:14]} Rf6 {[%emt 0:00:35]} 59. Rg8 {[%emt 0:00:32]} Kh3 {[%emt 0:00:08]} 0-1

[Event "British KO-ch 2019"]
[Site "London"]
[Date "2019.12.09"]
[Round "4.2"]
[White "Adams, Michael"]
[Black "Howell, David W L"]
[Result "0-1"]
[ECO "B12"]
[WhiteElo "2692"]
[BlackElo "2701"]
[Annotator "ChessBase"]
[PlyCount "64"]
[EventDate "2019.11.30"]
[EventType "k.o."]
[EventCountry "ENG"]
[SourceTitle "playchess.com"]
[Source "ChessBase"]
[SourceQuality "1"]
[TimeControl "300+3"]

1. e4 {[%emt 0:00:00]} c6 {[%emt 0:00:00]} 2. d4 {[%emt 0:00:00]} d5 {[%emt 0:00:01]} 3. e5 {[%emt 0:00:01]} Bf5 {[%emt 0:00:01]} 4. Nf3 {[%emt 0:00:01]} e6 {[%emt 0:00:02]} 5. Be2 {[%emt 0:00:01]} Ne7 {[%emt 0:00:01]} 6. O-O {[%emt 0:00:03]} Ng6 {[%emt 0:00:05]} 7. a4 {[%emt 0:00:10]} Nd7 {[%emt 0:00:04]} 8. Be3 {[%emt 0:00:05]} f6 {[%emt 0:00:04]} 9. exf6 {[%emt 0:00:05]} Qxf6 {[%emt 0:00:07]} 10. Bd3 {[%emt 0:00:02]} Bd6 {[%emt 0:00:03]} 11. Bxf5 {[%emt 0:00:11]} Qxf5 {[%emt 0:00:01]} 12. Nc3 {[%emt 0:00:02]} O-O {[%emt 0:00:21]} 13. Ne2 {[%emt 0:00:04]} Rae8 {[%emt 0:00:57]} 14. Ng3 {[%emt 0:00:14]} Qf6 {[%emt 0:00:02]} 15. c4 {[%emt 0:01:03]} Nh4 {[%emt 0:00:29]} 16. Nxh4 {[%emt 0:00:52]} Qxh4 {[%emt 0:00:02]} 17. cxd5 {[%emt 0:00:19]} exd5 {[%emt 0:00:06]} 18. Qd2 {[%emt 0:00:06]} h6 {[%emt 0:00:28]} 19. Rfe1 {[%emt 0:00:09]} Nf6 {[%emt 0:00:12]} 20. f3 {[%emt 0:00:37]} Bxg3 {[%emt 0:00:12]} 21. hxg3 {[%emt 0:00:01]} Qxg3 {[%emt 0:00:01]} 22. Bf4 {[%emt 0:00:03]} Qg6 {[%emt 0:00:06]} 23. Be5 {[%emt 0:00:16]} Nd7 {[%emt 0:00:10]} 24. Ra3 {[%emt 0:00:01]} c5 {[%emt 0:00:43]} 25. Rae3 {[%emt 0:00:17]} Nxe5 {[%emt 0:00:07]} 26. Rxe5 {[%emt 0:00:02]} Rxe5 {[%emt 0:00:03]} 27. Rxe5 {[%emt 0:00:01]} Rxf3 {[%emt 0:00:09]} 28. dxc5 {[%emt 0:00:02]} Rd3 {[%emt 0:00:11]} 29. Qe2 {[%emt 0:00:19]} Rd4 {[%emt 0:00:19]} 30. Re7 {[%emt 0:00:35]} Rxa4 {[%emt 0:00:47]} 31. Rxb7 {[%emt 0:00:06]} Kh7 {[%emt 0:00:32]} 32. b4 {[%emt 0:00:21]} d4 {[%emt 0:00:06]} 0-1

[Event "British KO-ch 2019"]
[Site "London"]
[Date "2019.12.07"]
[Round "4.4"]
[White "Adams, Michael"]
[Black "Howell, David W L"]
[Result "1/2-1/2"]
[ECO "B11"]
[WhiteElo "2692"]
[BlackElo "2701"]
[Annotator "ChessBase"]
[PlyCount "34"]
[EventDate "2019.11.30"]
[EventType "k.o."]
[EventCountry "ENG"]
[SourceTitle "playchess.com"]
[Source "ChessBase"]
[SourceQuality "1"]
[TimeControl "300+3"]

1. e4 {[%emt 0:00:00]} c6 {[%emt 0:00:00]} 2. Nf3 {[%emt 0:00:00]} d5 {[%emt 0:00:00]} 3. Nc3 {[%emt 0:00:01]} dxe4 {[%emt 0:00:07]} 4. Nxe4 {[%emt 0:00:01]} Nf6 {[%emt 0:00:02]} 5. Qe2 {[%emt 0:00:01]} Be6 {[%emt 0:00:01]} 6. d3 {[%emt 0:00:22]} g6 {[%emt 0:00:01]} 7. Nfg5 {[%emt 0:00:51]} Nxe4 {[%emt 0:00:54]} 8. dxe4 {[%emt 0:00:02]} Qc8 {[%emt 0:01:01]} 9. Nxe6 {[%emt 0:00:02]} Qxe6 {[%emt 0:00:01]} 10. Qc4 {[%emt 0:00:02]} Qxc4 {[%emt 0:01:08]} 11. Bxc4 {[%emt 0:00:02]} Nd7 {[%emt 0:00:00]} 12. a4 {[%emt 0:00:14]} Bg7 {[%emt 0:00:05]} 13. c3 {[%emt 0:00:05]} Ne5 {[%emt 0:00:51]} 14. Be2 {[%emt 0:00:01]} O-O-O {[%emt 0:00:02]} 15. Be3 {[%emt 0:00:06]} b6 {[%emt 0:00:27]} 16. Rd1 {[%emt 0:00:12]} h5 {[%emt 0:00:26]} 17. f3 {[%emt 0:00:11]} Rxd1+ {[%emt 0:00:19]} 1/2-1/2

[Event "British KO-ch 2019"]
[Site "London"]
[Date "2019.12.09"]
[Round "4.6"]
[White "Adams, Michael"]
[Black "Howell, David W L"]
[Result "1/2-1/2"]
[ECO "E21"]
[WhiteElo "2692"]
[BlackElo "2701"]
[Annotator "RC"]
[PlyCount "102"]
[EventDate "2019.11.30"]
[EventType "k.o."]
[EventCountry "ENG"]
[SourceTitle "playchess.com"]
[Source "ChessBase"]
[SourceQuality "1"]
[TimeControl "300+3"]

1. c4 {[%emt 0:00:00]} b6 {[%emt 0:00:00]} 2. d4 {[%emt 0:00:00]} Bb7 {[%emt 0:00:00]} 3. Nc3 {[%emt 0:00:02]} Nf6 {[%emt 0:00:01]} 4. Nf3 {[%emt 0:00:04]} e6 {[%emt 0:00:07]} 5. g3 {[%emt 0:00:02]} Bb4 {[%emt 0:00:04]} 6. Bg2 {[%emt 0:00:01]} Bxc3+ 7. bxc3 {[%emt 0:00:01]} d6 {[%emt 0:00:18]} 8. O-O {[%emt 0:00:08]} Nbd7 {[%emt 0:00:01]} 9. Re1 {[%emt 0:00:10]} O-O {[%emt 0:00:02]} 10. Qc2 {[%emt 0:00:17]} Be4 {[%emt 0:00:06]} 11. Qb3 {[%emt 0:00:04]} e5 {[%emt 0:00:24]} 12. Bh3 {[%emt 0:00:19]} Re8 {[%emt 0:00:08]} 13. Bb2 {[%emt 0:00:40]} Bb7 {[%emt 0:00:34]} 14. Nh4 {[%emt 0:00:06]} Ne4 {[%emt 0:00:46]} 15. Rad1 {[%emt 0:00:16]} Ng5 {[%emt 0:00:33]} 16. Bg2 {[%emt 0:00:02]} Bxg2 {[%emt 0:00:02]} 17. Kxg2 {[%emt 0:00:02]} Qc8 {[%emt 0:00:13]} 18. Bc1 {[%emt 0:00:08]} h6 {[%emt 0:00:13]} 19. Bxg5 {[%emt 0:00:37]} hxg5 {[%emt 0:00:01]} 20. Nf5 {[%emt 0:00:08]} Nf6 {[%emt 0:00:09]} 21. Ne3 {[%emt 0:00:03]} Qe6 {[%emt 0:00:30]} 22. Nd5 {[%emt 0:00:07]} Nxd5 {[%emt 0:00:11]} 23. cxd5 {[%emt 0:00:01]} Qg6 {[%emt 0:00:04]} 24. Qc4 {[%emt 0:00:17]} Rac8 {[%emt 0:00:14]} 25. e4 {[%emt 0:00:05]} g4 {[%emt 0:00:02]} 26. h3 {[%emt 0:00:17]} exd4 {[%emt 0:00:12]} 27. Qxd4 {[%emt 0:00:19]} gxh3+ {[%emt 0:00:14]} 28. Kxh3 {[%emt 0:00:02]} Re5 {[%emt 0:00:01]} 29. Kg2 {[%emt 0:00:41]} Rce8 {[%emt 0:00:02]} 30. f3 {[%emt 0:00:01]} f5 {[%emt 0:00:11]} 31. Rh1 {[%emt 0:00:06]} fxe4 {[%emt 0:00:09]} 32. f4 {[%emt 0:00:01]} Rh5 {[%emt 0:00:18]} 33. Qe3 {[%emt 0:00:10]} Kf7 {[%emt 0:00:26]} 34. c4 {[%emt 0:00:49]} Reh8 {[%emt 0:00:01]} 35. Rde1 {[%emt 0:00:03]} Rxh1 {[%emt 0:00:13]} 36. Rxh1 {[%emt 0:00:01]} Rxh1 {[%emt 0:00:01]} 37. Kxh1 {[%emt 0:00:01]} Kf6 {[%emt 0:00:02]} 38. Kg2 {[%emt 0:00:05]} Kf5 {[%emt 0:00:02]} 39. Qa3 {[%emt 0:00:07]} Qg4 {[%emt 0:00:13]} 40. Qe3 {[%emt 0:00:03]} Qd1 {[%emt 0:00:04]} 41. Qc3 {[%emt 0:00:05]} Qe2+ {[%emt 0:00:04]} 42. Kh3 {[%emt 0:00:01]} Qf1+ {[%emt 0:00:03]} 43. Kh2 {[%emt 0:00:01]} Qf2+ {[%emt 0:00:02]} 44. Kh3 {[%emt 0:00:01]} e3 {[%emt 0:00:02]} 45. Qxg7 {[%emt 0:00:13]} e2 {[%emt 0:00:06]} 46. Qh7+ {[%emt 0:00:01]} Kf6 {[%emt 0:00:02]} 47. Qh6+ {[%emt 0:00:04]} Ke7 {[%emt 0:00:02]} 48. Qe6+ {[%emt 0:00:03]} Kd8 {[%emt 0:00:01]} 49. Qg8+ {[%emt 0:00:02]} Ke7 {[%emt 0:00:01]} 50. Qe6+ {[%emt 0:00:01]} Kf8 {[%emt 0:00:01]} 51. Qf6+ {[%emt 0:00:01]} Ke8 {[%emt 0:00:03]} 1/2-1/2